bitfinex/quotes_ETHUSD_20260213
["timestamp","ask_amount","ask_price","bid_price","bid_amount"]
[1771006639614,0.49618864,2058.0,2057.3,0.001]
[1771006641413,1.21483065,2057.9,2057.3,0.001]
[1771006641616,0.49618864,2057.8,2057.3,0.001]
[1771006642615,0.49618864,2057.8,2057.3,0.002]
[1771006642820,0.49618864,2057.8,2056.8,0.001]
[1771006643317,0.49618864,2057.8,2056.8,1.21647538]
[1771006643490,0.49618864,2057.8,2056.8,0.001]
[1771006643491,0.49618864,2057.6,2056.8,0.001]
[1771006645589,0.49618864,2057.4,2056.8,0.001]
[1771006645791,0.49618864,2057.3,2056.8,0.001]
[1771006648290,0.49618864,2057.9,2056.8,0.001]
[1771006648488,1.62018864,2057.8,2056.8,0.001]
[1771006649698,0.49618864,2057.8,2056.8,0.49488556]
[1771006650027,0.49618864,2058.1,2057.0,0.49388556]
[1771006650223,0.49618864,2058.0,2056.9,2.82630682]
[1771006650430,0.49618864,2058.0,2057.0,0.49388556]
[1771006651533,1.61233687,2058.2,2057.0,0.49488556]
[1771006651710,1.61233687,2058.2,2057.1,0.46784086]
[1771006651914,0.48833687,2058.2,2057.2,1.21524402]
[1771006652119,0.002,2057.8,2057.2,1.21524402]
[1771006653734,0.002,2057.8,2057.2,1.68308488]
[1771006655048,0.002,2057.8,2057.2,1.21524402]
[1771006656639,0.002,2057.8,2057.2,1.68308488]
[1771006658432,0.00065597,2057.8,2057.2,1.68308488]
[1771006658636,0.002,2058.3,2057.3,0.4707754]
[1771006658841,0.002,2058.3,2057.4,4.943]
[1771006659012,0.47216582,2058.2,2057.4,4.943]
[1771006660538,0.47216582,2058.2,2057.5,1.21506682]
[1771006662743,0.47216582,2058.1,2057.5,1.21506682]
[1771006663439,0.47216582,2058.1,2057.1,5.98717804]
[1771006663440,0.47216582,2058.1,2057.2,1.21524402]
[1771006664248,0.47216582,2058.1,2057.4,0.001]
[1771006664547,0.47216582,2057.9,2057.4,0.001]
[1771006664958,1.68702024,2057.9,2057.4,0.001]
[1771006665325,1.21485442,2057.9,2057.4,0.001]
[1771006665631,0.47216582,2057.8,2057.4,0.001]
[1771006666452,1.59116582,2058.0,2057.4,0.001]
[1771006666949,0.002,2058.0,2057.4,0.001]
[1771006670632,0.002,2058.0,2057.4,0.4717754]
[1771006671052,0.002,2058.0,2057.5,1.21506682]
[1771006671853,0.47416582,2058.0,2057.5,1.21506682]
[1771006675461,0.47416582,2058.0,2057.4,0.001]
[1771006677758,0.47416582,2058.0,2057.6,0.001]
[1771006678061,0.002,2057.8,2057.6,0.001]
[1771006678272,0.47282198,2057.8,2057.6,0.001]
[1771006678444,0.47282198,2057.8,2057.1,1.21626841]
[1771006678651,0.47282198,2057.8,2057.1,0.001]
[1771006679040,0.47216582,2057.7,2057.1,0.001]
[1771006679269,0.47216582,2057.7,2057.1,1.21628416]
[1771006679878,1.68717359,2057.6,2057.1,0.001]
[1771006680265,0.47216582,2057.5,2057.1,0.001]
[1771006681479,0.47216582,2057.5,2056.8,0.001]
[1771006681651,0.45047919,2057.3,2056.8,0.001]
[1771006681850,1.66572321,2057.2,2056.8,0.001]
[1771006682149,0.45047919,2057.2,2056.8,0.001]
[1771006682662,2.77865127,2057.4,2056.8,0.001]
[1771006682863,0.45047919,2057.3,2056.8,0.001]
[1771006683250,0.45047919,2057.6,2056.8,0.001]
[1771006683448,2.77949073,2057.6,2056.8,0.001]
[1771006683682,0.45113535,2057.8,2056.8,1.59593159]
[1771006684080,0.45113535,2057.8,2056.9,1.21542126]
[1771006684250,0.00065616,2057.8,2056.9,1.68435285]
[1771006684587,0.45047919,2057.7,2056.9,1.21542126]
[1771006684875,0.00065616,2057.8,2056.9,1.21542126]
[1771006685399,0.45047919,2057.7,2056.9,1.21542126]
[1771006686377,0.45047919,2057.5,2056.9,1.21542126]
[1771006686576,0.45047919,2057.5,2056.8,2.34243194]
[1771006687285,0.45047919,2057.5,2056.8,1.21643194]
[1771006688346,0.45047919,2057.4,2056.8,0.001]
[1771006689764,0.45047919,2057.7,2057.1,0.001]
[1771006690085,0.002,2057.5,2057.1,0.001]
[1771006692907,0.45247919,2057.5,2057.1,0.001]
[1771006694299,1.56347919,2057.5,2057.1,0.001]
[1771006694499,0.45047919,2057.4,2057.1,0.001]
[1771006694667,1.66566414,2057.3,2057.1,0.001]
[1771006694875,0.45047919,2057.2,2056.5,0.001]
[1771006695176,0.45047919,2057.2,2056.5,0.002]
[1771006695691,0.45047919,2057.0,2056.5,0.001]
[1771006695873,0.45047919,2056.8,2056.5,0.001]
[1771006697001,1.21553945,2056.7,2056.5,0.001]
[1771006697384,1.66600759,2056.8,2056.5,0.001]
[1771006698807,2.32840319,2057.0,2056.5,0.002]
[1771006699006,2.32840319,2057.0,2056.5,0.001]
[1771006699376,2.77888238,2057.0,2056.5,0.001]
[1771006699906,0.45047919,2056.9,2056.5,0.001]
[1771006700076,2.32840319,2057.0,2056.5,0.001]
[1771006700276,2.32840319,2057.0,2056.6,0.001]
[1771006700804,1.113,2057.0,2056.6,0.001]
[1771006700981,2.32836797,2057.0,2056.6,0.001]
[1771006701186,1.113,2057.0,2056.6,0.001]
[1771006702607,0.002,2057.5,2056.8,0.001]
[1771006702977,0.002,2057.5,2056.9,0.001]
[1771006703176,0.002,2057.5,2056.8,0.001]
[1771006703177,0.001,2057.5,2056.8,0.001]
[1771006705714,0.001,2057.5,2056.8,0.46993159]
[1771006706721,0.45147919,2057.5,2056.8,0.001]
[1771006707710,0.45047919,2057.3,2056.8,0.001]
[1771006709817,1.66566903,2057.3,2056.8,0.001]
[1771006710426,0.45047919,2057.3,2056.8,0.001]
[1771006710597,2.32817055,2057.4,2056.8,0.001]
[1771006711124,2.80422215,2057.4,2056.8,0.001]
[1771006711618,0.4760516,2057.3,2056.8,0.001]
[1771006713705,0.4760516,2057.1,2056.8,0.001]
[1771006714421,0.4780516,2057.1,2056.8,0.001]
[1771006714919,1.5920516,2057.0,2056.8,0.001]
[1771006715211,0.4760516,2056.9,2056.4,0.001]
[1771006715506,0.4760516,2056.9,2056.0,0.001]
[1771006715683,0.4760516,2056.7,2055.5,2.09220024]
[1771006715878,0.4760516,2056.5,2055.5,2.09220024]
[1771006716134,0.4760516,2056.5,2055.5,0.876]
[1771006716748,0.4760516,2056.5,2055.1,1.21648581]
[1771006716896,0.4760516,2056.4,2055.1,1.21648581]
[1771006717099,0.48204041,2056.2,2055.1,1.21648581]
[1771006717323,0.48204041,2056.0,2055.1,1.21648581]
[1771006717804,0.48204041,2056.0,2054.8,5.98394326]
[1771006717805,0.48204041,2055.8,2054.8,4.86594326]
[1771006718236,0.48204041,2055.8,2054.8,5.36355166]
[1771006718432,1.21600144,2056.0,2054.9,0.4976084]
[1771006718732,1.69796657,2056.1,2055.0,0.4976084]
[1771006718942,0.48204041,2056.0,2054.8,4.86594326]
[1771006719140,0.48204041,2056.0,2054.8,1.21666342]
[1771006719309,0.48204041,2055.9,2054.7,1.21667507]
[1771006719847,0.48204041,2055.7,2054.7,1.21667507]
[1771006720038,0.48204041,2055.5,2054.7,1.21667507]
[1771006720409,0.48204041,2055.5,2054.6,2.33473963]
[1771006721134,0.48204041,2055.5,2054.6,2.33475903]
[1771006721829,0.48204041,2055.5,2054.5,5.3648324]
[1771006722026,10.1516185,2056.3,2054.5,5.3648324]
[1771006722206,0.48204041,2056.0,2054.6,0.4976084]
[1771006723220,3.20689416,2056.1,2054.8,0.4976084]
[1771006723527,1.991,2056.1,2054.8,0.4976084]
[1771006723721,0.48204041,2056.0,2054.8,0.4976084]
[1771006723926,0.48204041,2055.8,2054.9,1.21660421]
[1771006724618,0.48204041,2055.8,2054.8,2.04161655]
[1771006725631,1.59704041,2055.8,2054.8,2.53922495]
[1771006726035,1.115,2055.8,2054.8,2.53922495]
[1771006726234,1.115,2055.8,2054.9,0.4976084]
[1771006726836,1.35804041,2056.1,2054.9,0.4976084]
[1771006727035,2.57393595,2056.1,2054.9,0.4976084]
[1771006727241,1.35804041,2056.1,2054.9,0.4976084]
[1771006727949,2.57396364,2056.1,2055.0,1.21654501]
[1771006728247,2.57394373,2056.1,2055.0,1.71415341]
[1771006728446,1.35804041,2056.1,2055.0,1.71415341]
[1771006728626,1.35804041,2056.1,2055.1,0.001]
[1771006728832,4.86319049,2056.3,2055.1,0.001]
[1771006728833,0.002,2056.3,2055.1,0.4986084]
[1771006729454,0.002,2056.3,2055.3,0.4976084]
[1771006729639,0.002,2056.3,2055.2,9.96476226]
[1771006729640,0.002,2056.3,2055.5,0.4976084]
[1771006730142,0.002,2056.3,2055.6,1.71379832]
[1771006730343,0.002,2056.3,2055.7,0.4976084]
[1771006730546,0.002,2056.5,2055.7,0.4976084]
[1771006731562,0.002,2057.1,2055.8,0.4976084]
[1771006731729,0.002,2057.1,2056.0,0.4976084]
[1771006731930,0.002,2057.1,2056.3,1.7133843]
[1771006732257,0.002,2057.1,2056.5,0.4976084]
[1771006734051,0.002,2057.3,2056.6,1.71320696]
[1771006734868,0.002,2057.3,2056.6,1.21559856]
[1771006736932,0.002,2057.3,2056.1,4.86263068]
[1771006736933,0.48404041,2057.3,2056.1,4.86263068]
[1771006737133,0.48404041,2057.3,2056.2,2.33383503]
[1771006737528,0.48204041,2057.2,2056.2,2.33383503]
[1771006738659,0.48204041,2057.2,2056.2,1.21583503]
[1771006738835,0.48204041,2057.2,2055.9,1.21601245]
[1771006739157,0.48204041,2057.0,2055.7,5.9820498]
[1771006740636,0.48204041,2057.0,2055.7,2.33413075]
[1771006740955,0.49167518,2056.6,2055.7,2.33413075]
[1771006741145,0.49167518,2056.6,2055.7,2.33411871]
[1771006741857,0.49167518,2056.6,2055.9,0.001]
[1771006742059,1.108,2056.6,2055.9,0.001]
[1771006742235,0.49167518,2056.5,2055.9,0.001]
[1771006743035,0.49167518,2056.3,2055.9,0.001]
[1771006743935,0.49167518,2056.6,2055.9,0.001]
[1771006744664,0.49167518,2056.6,2055.6,1.21718079]
[1771006744665,0.49167518,2056.6,2055.6,0.001]
[1771006744835,0.49167518,2056.5,2055.6,0.001]
[1771006745038,0.49167518,2056.3,2055.6,0.001]
[1771006746644,2.32369609,2056.5,2055.6,0.001]
[1771006746856,2.81537127,2056.5,2055.6,0.001]
[1771006747060,0.49167518,2056.4,2055.6,0.001]
[1771006749066,1.70744803,2056.4,2055.6,0.001]
[1771006749271,1.108,2056.5,2055.6,0.001]
[1771006750072,2.32366414,2056.5,2055.6,0.001]
[1771006750446,2.81533932,2056.5,2055.6,0.001]
[1771006750976,0.49167518,2056.4,2055.6,0.001]
[1771006751267,1.70744651,2056.4,2055.6,0.001]
[1771006751475,0.49167518,2056.3,2055.6,0.001]
[1771006752057,1.59967518,2056.5,2055.6,0.001]
[1771006752275,2.81533436,2056.5,2055.6,0.001]
[1771006753161,1.108,2056.5,2055.7,1.21613075]
[1771006753355,2.32365815,2056.5,2055.7,1.21613075]
[1771006753559,2.81533333,2056.5,2055.7,1.21613075]
[1771006753755,0.49167518,2056.4,2055.6,1.21714435]
[1771006753957,0.49167518,2056.4,2055.6,0.001]
[1771006754159,0.49167518,2056.4,2055.6,1.21718064]
[1771006754573,0.49167518,2056.4,2055.6,0.001]
[1771006755469,0.49167518,2056.2,2055.8,0.001]
[1771006755673,0.49167518,2056.2,2055.6,0.001]
[1771006757474,1.21589416,2056.1,2055.6,0.001]
[1771006757660,1.108,2056.0,2055.6,0.001]
[1771006758062,1.59967518,2056.0,2055.6,0.001]
[1771006758579,0.49167518,2055.9,2055.6,0.001]
[1771006759983,1.2160716,2055.8,2055.6,0.001]
[1771006760477,1.2160716,2055.8,2055.1,1.2174634]
[1771006760478,1.70774678,2055.8,2055.1,1.2174634]
[1771006760654,0.49167518,2055.7,2055.1,0.001]
[1771006761969,0.49167518,2055.5,2055.1,0.001]
[1771006762404,1.60267518,2055.5,2055.1,0.001]
[1771006762600,0.49167518,2055.4,2055.1,0.001]
[1771006763300,1.111,2055.5,2053.7,1.21731508]
[1771006763301,0.49167518,2055.0,2053.7,1.21731508]
[1771006763501,1.112,2054.9,2053.7,1.68431216]
[1771006763694,1.112,2054.9,2053.8,0.46699708]
[1771006764083,1.112,2054.9,2054.0,0.46699708]
[1771006764463,2.32861374,2054.9,2053.9,1.21719655]
[1771006764670,1.112,2054.9,2053.9,2.79419363]
[1771006765001,1.112,2054.9,2054.0,0.46699708]
[1771006765292,0.49167518,2055.1,2054.0,0.46699708]
[1771006765589,2.32846083,2055.2,2054.0,0.46699708]
[1771006765795,1.112,2055.2,2054.0,0.46699708]
[1771006766236,1.112,2055.2,2054.2,0.46699708]
[1771006766397,2.09327764,2055.5,2054.2,0.46699708]
[1771006766603,2.0932553,2055.5,2054.2,0.46699708]
[1771006767518,2.09325169,2055.5,2054.2,0.46699708]
[1771006767729,2.58492687,2055.5,2054.2,0.46699708]
[1771006768027,1.21636744,2055.3,2054.3,1.21695954]
[1771006768231,1.70804262,2055.3,2054.3,1.21695954]
[1771006768428,0.49167518,2055.2,2054.3,1.21695954]
[1771006768640,1.21636744,2055.3,2054.2,0.001]
[1771006768641,0.49167518,2055.0,2054.2,0.001]
[1771006768833,1.111,2055.1,2053.2,0.25030961]
[1771006768834,0.49167518,2054.6,2054.0,0.001]
[1771006769001,0.49167518,2054.4,2053.2,1.46791322]
[1771006769209,1.988,2054.5,2053.2,0.25030961]
[1771006769210,0.1024,2054.3,2053.2,0.25030961]
[1771006769403,0.49167518,2054.2,2053.2,0.25030961]
[1771006769805,0.49167518,2054.0,2053.2,0.25030961]
[1771006770012,1.21731508,2053.7,2053.2,0.25030961]
[1771006770212,1.21731508,2053.7,2053.1,0.001]
[1771006770537,1.70897759,2053.8,2053.1,1.21866897]
[1771006770735,1.71308469,2054.1,2053.1,1.21866897]
[1771006770957,2.09400214,2054.3,2053.1,1.21866897]
[1771006771166,3.20700214,2054.3,2053.1,1.21866897]
[1771006771446,0.49596168,2054.0,2053.1,0.001]
[1771006771623,0.49596168,2053.9,2053.1,0.001]
[1771006771810,0.49596168,2053.7,2052.3,4.87257211]
[1771006772011,0.49596168,2053.7,2052.4,0.4688708]
[1771006772211,1.002,2053.6,2052.5,1.68689759]
[1771006772412,1.115,2053.9,2052.7,0.4688708]
[1771006772646,0.49596168,2053.8,2052.6,1.113]
[1771006773651,0.49596168,2053.8,2052.6,1.5818708]
[1771006773846,1.116,2053.8,2052.6,1.5818708]
[1771006774031,1.21731508,2053.7,2052.7,1.21790812]
[1771006774238,1.116,2053.8,2052.7,1.68677892]
[1771006774414,1.37296168,2054.1,2052.8,0.4688708]
[1771006774615,0.877,2054.1,2052.8,0.4688708]
[1771006774930,2.09407963,2054.1,2053.0,0.4688708]
[1771006775114,2.09407963,2054.1,2052.9,0.877]
[1771006775311,2.59004131,2054.1,2052.9,0.877]
[1771006775562,0.49596168,2054.0,2052.7,1.21790812]
[1771006775740,2.09407963,2054.1,2052.8,0.4688708]
[1771006775741,1.21707963,2054.1,2052.8,0.4688708]
[1771006776047,2.33405615,2054.2,2052.8,0.4688708]
[1771006776213,0.49596168,2054.1,2052.9,1.21778946]
[1771006776642,0.49596168,2053.9,2052.5,2.3329876]
[1771006776846,0.49596168,2053.7,2051.9,4.87339891]
[1771006777041,0.49596168,2053.5,2051.9,4.87339891]
[1771006777240,0.49596168,2053.5,2051.9,5.35868458]
[1771006777442,1.13096168,2053.5,2052.0,0.48528567]
[1771006778162,1.13096168,2053.5,2052.2,0.48528567]
[1771006778370,0.635,2053.5,2052.2,0.48528567]
[1771006778651,0.635,2053.5,2052.3,1.36228567]
[1771006778852,0.635,2053.5,2052.4,1.116]
[1771006779021,0.45664203,2053.8,2052.5,0.48528567]
[1771006779320,2.33418165,2054.0,2052.5,0.48528567]
[1771006779727,1.21718165,2054.0,2052.5,0.48528567]
[1771006779956,0.45664203,2053.9,2052.6,1.804]
[1771006780153,0.45664203,2053.9,2052.7,1.21790812]
[1771006780154,1.67389784,2053.8,2052.7,1.21790812]
[1771006780323,0.45664203,2053.7,2052.7,1.21790812]
[1771006780518,1.67375,2054.1,2052.7,1.21790812]
[1771006780721,2.3340626,2054.2,2052.8,0.48528567]
[1771006780946,2.3340626,2054.2,2052.7,1.21790812]
[1771006780947,1.117,2054.2,2053.0,0.48528567]
[1771006781119,0.877,2054.4,2053.1,1.60128567]
[1771006781120,2.09392417,2054.4,2053.1,1.60128567]
[1771006781328,0.002,2053.9,2053.2,1.116]
[1771006782137,0.002,2053.9,2053.3,1.21755223]
[1771006782742,0.45664203,2054.4,2053.3,1.21755223]
[1771006783047,1.118,2054.6,2053.4,0.48528567]
[1771006783352,2.33478809,2054.6,2053.4,0.48528567]
[1771006783644,1.118,2054.6,2053.4,0.48528567]
[1771006783853,2.33478317,2054.6,2053.4,0.48528567]
[1771006784051,1.118,2054.6,2053.4,0.48528567]
[1771006784222,1.118,2054.6,2053.5,1.21743364]
[1771006784722,2.33478303,2054.6,2053.5,1.21743364]
[1771006785053,1.118,2054.6,2053.5,1.21743364]
[1771006785227,2.33479083,2054.6,2053.5,1.21743364]
[1771006785627,2.79143286,2054.6,2053.5,1.21743364]
[1771006785819,1.118,2054.6,2053.5,1.21743364]
[1771006786018,1.118,2054.6,2053.5,1.70271931]
[1771006786254,1.67325566,2054.9,2053.6,0.48528567]
[1771006786551,1.67325566,2054.9,2053.7,1.21731508]
[1771006786851,0.45664203,2054.9,2053.7,1.21731508]
[1771006787052,1.117,2055.1,2053.7,1.70260075]
[1771006787250,1.117,2055.1,2053.8,0.48528567]
[1771006787493,0.45664203,2055.4,2054.1,9.20262144]
[1771006787651,0.45664203,2055.4,2053.9,1.997]
[1771006787652,0.45664203,2055.4,2053.9,0.48528567]
[1771006787956,0.45664203,2055.2,2054.0,1.12]
[1771006788326,0.41264203,2055.2,2054.0,1.12]
[1771006788530,0.41264203,2055.2,2054.1,1.21707803]
[1771006788531,0.45664203,2055.0,2054.1,1.21707803]
[1771006789160,1.67305141,2055.3,2054.1,1.21707803]
[1771006789355,2.79105141,2055.3,2054.1,1.21707803]
[1771006789564,0.45664203,2055.2,2054.1,1.21707803]
[1771006790854,1.118,2055.3,2054.1,1.21707803]
[1771006791276,2.33436838,2055.3,2054.1,1.7023637]
[1771006791487,2.79101041,2055.3,2054.1,1.21707803]
[1771006792599,1.57464203,2055.3,2054.1,1.21707803]
[1771006792886,2.33437629,2055.3,2054.1,1.7023637]
[1771006793862,0.45664203,2055.2,2054.1,1.21707803]
[1771006794217,0.45664203,2055.2,2054.2,1.122]
[1771006794512,5.74224598,2055.4,2054.3,0.48628567]
[1771006794513,0.877,2055.4,2054.3,0.48628567]
[1771006794805,0.002,2055.1,2054.4,1.21690031]
[1771006795357,0.002,2055.5,2054.5,0.48528567]
[1771006795563,0.002,2055.5,2054.6,1.123]
[1771006795971,0.002,2055.5,2054.6,1.60828567]
[1771006796575,0.002,2055.5,2054.7,1.21672263]
[1771006797504,0.002,2055.5,2054.8,1.122]
[1771006798583,0.002,2055.5,2054.9,1.21660421]
[1771006800502,0.45664203,2055.7,2054.9,1.21660421]
[1771006800796,1.69757622,2055.6,2054.9,1.21660421]
[1771006800997,1.69757622,2055.6,2054.8,2.33866337]
[1771006800998,0.4813863,2055.5,2054.8,2.33866337]
[1771006801575,0.4813863,2055.9,2054.8,2.33866337]
[1771006801999,4.86344847,2056.2,2054.9,0.45812198]
[1771006802000,1.21586768,2056.2,2054.9,0.45812198]
[1771006802373,2.81119623,2056.3,2054.9,0.45812198]
[1771006802600,0.4833863,2056.3,2054.9,0.45812198]
[1771006802810,0.002,2056.3,2055.1,0.45812198]
[1771006803106,0.4833863,2056.3,2055.2,1.123]
[1771006803506,0.4833863,2056.3,2055.1,1.122]
[1771006805121,0.4813863,2056.1,2055.2,1.21642662]
[1771006805415,1.21781739,2056.3,2055.2,1.21642662]
[1771006805782,0.4813863,2056.2,2055.2,1.21642662]
[1771006806982,0.4813863,2056.2,2055.1,1.21645061]
[1771006807185,1.21589416,2056.1,2055.1,1.21645061]
[1771006807595,0.002,2056.0,2055.1,1.21645061]
[1771006808387,0.4813863,2055.9,2055.0,2.33849972]
[1771006809305,0.4813863,2055.7,2055.0,1.21649972]
[1771006810586,0.4813863,2055.7,2054.4,4.86721267]
[1771006811305,1.21618992,2055.6,2054.4,5.32533465]
[1771006812024,1.69757622,2055.6,2054.4,5.32533465]
[1771006812527,0.4813863,2055.5,2054.4,5.32533465]
[1771006812695,0.4813863,2055.5,2054.4,4.86721267]
[1771006813993,1.69764864,2055.5,2054.4,4.86721267]
[1771006816125,1.69764864,2055.5,2054.4,8.68721267]
[1771006816744,0.4813863,2055.5,2054.5,0.45812198]
[1771006816907,3.68346168,2055.8,2054.6,0.45812198]
[1771006817107,0.4813863,2055.7,2054.7,1.122]
[1771006817733,0.4813863,2055.7,2054.5,0.45812198]
[1771006817936,1.21618992,2055.6,2054.9,1.21660421]
[1771006818135,1.69756016,2055.7,2054.9,1.21660421]
[1771006819756,0.4813863,2055.6,2054.9,1.21660421]
[1771006820306,1.69759329,2055.6,2054.9,1.21660421]
[1771006820534,0.4813863,2055.6,2054.9,1.21660421]
[1771006820734,0.4813863,2055.5,2054.9,1.21760421]
[1771006821043,1.21616558,2055.7,2054.9,1.21760421]
[1771006821476,1.986,2055.8,2054.9,1.21760421]
[1771006822079,1.986,2055.8,2054.9,1.67572619]
[1771006822376,1.986,2055.8,2055.1,1.21648581]
[1771006822682,1.109,2055.8,2055.1,1.21648581]
[1771006823043,0.4833863,2056.0,2055.2,1.122]
[1771006823744,0.002,2056.0,2055.2,1.122]
[1771006823945,1.21795783,2056.0,2055.2,1.122]
[1771006824381,1.21795783,2056.0,2055.1,4.86583528]
[1771006824562,0.4813863,2055.9,2055.2,1.122]
[1771006826383,1.6974579,2055.8,2055.0,1.21648581]
[1771006826969,0.4813863,2055.7,2055.0,1.21648581]
[1771006828780,1.6975191,2055.7,2055.0,1.21648581]
[1771006829873,2.80344384,2055.9,2055.0,1.21648581]
[1771006830492,1.5873863,2055.9,2055.0,1.21648581]
[1771006830701,0.002,2056.0,2055.1,0.45812198]
[1771006832579,0.002,2056.0,2055.3,0.45946655]
[1771006832777,0.002,2056.0,2055.4,1.122]
[1771006833284,0.002,2056.0,2055.4,1.58146655]
[1771006833450,0.002,2056.2,2055.4,1.58146655]
[1771006833850,0.002,2055.8,2055.5,0.45946655]
[1771006834083,0.002,2056.2,2055.5,0.45946655]
[1771006834455,0.002,2056.2,2055.6,1.67565647]
[1771006835177,0.002,2056.5,2055.6,1.67565647]
[1771006835972,1.70043761,2056.5,2055.6,1.21618992]
[1771006836795,0.48277353,2056.4,2055.5,4.86475968]
[1771006837105,0.48277353,2056.4,2055.4,1.21624908]
[1771006837106,0.48277353,2056.4,2055.4,2.33827191]
[1771006839393,0.46187021,2056.2,2055.4,2.33827191]
[1771006839789,0.46187021,2056.2,2055.2,4.86560654]
[1771006839980,0.46187021,2056.2,2055.2,5.98660654]
[1771006840294,0.46187021,2056.2,2055.2,6.44662351]
[1771006841171,0.46187021,2056.4,2055.3,0.46001697]
[1771006841380,0.002,2056.5,2055.5,0.46001697]
[1771006842399,0.46187021,2056.4,2055.5,3.82]
[1771006842594,0.46187021,2056.4,2055.5,4.941]
[1771006843823,1.67759951,2056.4,2055.6,1.21618992]
[1771006843981,0.46187021,2056.4,2055.6,1.21618992]
[1771006844495,1.67758717,2056.4,2055.6,1.21618992]
[1771006844696,0.46187021,2056.4,2055.6,1.21618992]
[1771006845778,0.002,2056.5,2055.6,1.67620689]
[1771006846807,0.002,2056.5,2055.8,0.001]
[1771006847013,0.002,2056.3,2055.8,0.001]
[1771006850916,0.002,2056.3,2055.8,0.46101697]
[1771006851384,0.002,2056.5,2055.8,0.46101697]
[1771006852218,0.002,2056.5,2055.9,1.21601245]
[1771006852518,0.46387021,2057.1,2056.1,0.46001697]
[1771006852690,0.002,2057.1,2056.1,0.46001697]
[1771006852886,1.217304,2057.1,2056.1,0.46001697]
[1771006853085,1.21736655,2057.0,2056.0,1.123]
[1771006853283,0.46187021,2056.9,2056.1,1.124]
[1771006854290,0.46187021,2056.7,2056.1,2.3398646]
[1771006856917,1.67742773,2056.7,2056.1,2.3398646]
[1771006857213,1.67742773,2056.7,2056.1,2.33989058]
[1771006857611,0.46187021,2056.6,2056.1,1.124]
[1771006858032,0.46187021,2056.6,2056.1,2.33989408]
[1771006858511,0.46187021,2056.6,2056.1,1.124]
[1771006859126,1.67752002,2056.6,2056.1,1.124]
[1771006859324,0.46187021,2056.5,2056.0,0.001]
[1771006859538,0.46387021,2056.5,2056.0,0.001]
[1771006859836,0.46387021,2056.5,2056.0,1.21695024]
[1771006860187,0.002,2056.5,2056.0,1.21695024]
[1771006861087,0.002,2056.5,2056.0,0.001]
[1771006861606,0.47558689,2056.5,2056.0,0.001]
[1771006862012,0.47558689,2056.5,2055.8,1.21703533]
[1771006862013,1.096,2056.4,2055.8,0.001]
[1771006862219,0.47358689,2056.3,2055.5,0.001]
[1771006863097,0.47358689,2056.1,2055.5,0.001]
[1771006864512,1.21583503,2056.2,2055.5,0.001]
[1771006864513,1.096,2056.2,2055.5,0.001]
[1771006865020,1.56958689,2056.2,2055.5,0.001]
[1771006865397,2.78544363,2056.2,2055.5,0.001]
[1771006866431,0.47358689,2056.1,2055.5,0.001]
[1771006866736,0.47358689,2056.1,2055.1,0.001]
[1771006866929,0.47358689,2056.1,2055.1,1.21747542]
[1771006867317,0.47358689,2055.9,2055.1,1.21747542]
[1771006868739,2.78546462,2056.2,2055.2,0.48413072]
[1771006869114,2.78546462,2056.2,2055.1,1.21747542]
[1771006869634,2.78546462,2056.2,2055.1,1.70160614]
[1771006871741,2.78546462,2056.2,2055.4,1.21630826]
[1771006871742,0.002,2056.0,2055.4,1.21630826]
[1771006872412,0.002,2056.0,2055.4,2.34030826]
[1771006872838,0.002,2056.0,2055.4,1.124]
[1771006874651,0.002,2056.0,2055.4,2.34025205]
[1771006875218,0.47558689,2056.0,2055.4,1.124]
[1771006875635,0.47558689,2056.0,2055.3,1.21736629]
[1771006875954,0.47558689,2056.0,2055.3,1.21736418]
[1771006877270,1.21601245,2055.9,2055.3,0.001]
[1771006877574,1.69158051,2056.0,2055.3,0.001]
[1771006879249,0.002,2056.0,2055.3,0.001]
[1771006880945,0.002,2056.0,2055.3,0.48513072]
[1771006882758,0.002,2056.0,2055.4,1.21630826]
[1771006882948,0.002,2056.0,2055.5,1.126]
[1771006884640,0.002,2056.0,2055.5,1.127]
[1771006884843,0.002,2055.8,2055.6,1.21618992]
[1771006888071,0.002,2055.8,2055.5,2.34319986]
[1771006889044,0.002,2055.8,2055.5,1.127]
[1771006889246,0.002,2055.8,2055.5,2.34324163]
[1771006890242,0.002,2055.8,2055.5,1.21724163]
[1771006893574,0.46771102,2055.8,2055.5,0.001]
[1771006894153,1.68378921,2055.8,2055.5,0.001]
[1771006894646,0.46571102,2055.7,2055.5,0.001]
[1771006895639,0.46571102,2055.7,2055.3,0.001]
[1771006896052,0.46571102,2055.5,2055.1,0.001]
[1771006897443,0.46571102,2055.5,2055.3,0.001]
[1771006898141,1.68197449,2055.5,2055.3,0.001]
[1771006898669,0.4663483,2055.4,2055.3,0.001]
[1771006899055,0.4663483,2055.4,2055.1,0.001]
[1771006899557,4.86480782,2055.6,2055.1,0.001]
[1771006899558,0.4663483,2055.6,2055.1,0.001]
[1771006900373,0.4663483,2055.6,2054.8,5.74263959]
[1771006900668,0.4663483,2055.6,2054.9,1.21660075]
[1771006902273,1.2180718,2055.8,2055.1,0.46202478]
[1771006902274,0.002,2055.8,2055.1,0.46202478]
[1771006904073,0.002,2056.0,2055.1,0.46202478]
[1771006904257,0.002,2056.0,2055.2,1.6784514]
[1771006904459,0.002,2056.0,2055.3,0.46202478]
[1771006904660,0.002,2056.2,2055.5,0.46202478]
[1771006905248,0.4683483,2056.5,2055.5,0.46202478]
[1771006905449,0.4683483,2056.5,2055.5,1.33902478]
[1771006906177,0.4683483,2056.5,2055.6,0.46202478]
[1771006906558,0.4683483,2056.5,2055.7,1.21613075]
[1771006906954,1.68400678,2056.5,2055.7,1.21613075]
[1771006907158,0.4683483,2056.5,2055.7,1.21613075]
[1771006910076,0.4663483,2056.4,2055.7,1.21613075]
[1771006910275,0.002,2056.3,2055.7,1.21613075]
[1771006910980,0.002,2056.3,2055.7,1.67815553]
[1771006911360,0.002,2056.5,2055.8,0.46202478]
[1771006911679,0.002,2057.0,2056.0,0.46202478]
[1771006911849,0.002,2057.0,2056.1,0.46202478]
[1771006912050,0.002,2057.0,2056.3,0.46202478]